Cogmind - Beta 16.1 @@@ ROGUE MODE // 2026.02.18 @ 15:24:04 Player: Reflectatory Result: Destroyed by S-43 Plague with Heavy Machine Gun Performance ------------- Evolutions (7) 3500 Regions Visited (20) 4000 Robots Destroyed (271) 1355 Value Destroyed (10565) 10565 Prototype IDs (23) 460 Alien Tech Used (0) 0 Bonus (3915) 3915 TOTAL SCORE: 23795 Bonus ------- High Alert Combat Kills 1220 Follower Combat Kills 2007 Entered DSFs 500 Built Enhanced Grunts 300 A7 Reached Mainframe 300 Friendly Fire -412 Cogmind --------- Core Integrity 0/1300 Matter 137/300 Energy 89/100 System Corruption 11% Temperature Cool (0) Movement Core (200) Ox3 Location -3/Research Parts ------- > --- POWER (2) -------- (None) > --- PROPULSION (4) --- (None) > --- UTILITY (9) ------ (None) > --- WEAPON (6) ------- Gamma Bomb Array > --- INVENTORY (5) ---- Light Antimatter Reactor Armored Heavy Treads Phasing Sabre Peak State ------------ > --- POWER ------------ Quantum Reactor Quantum Reactor > --- PROPULSION ------- Armored Heavy Treads Advanced Heavy Siege Treads > --- UTILITY ---------- Advanced Heat Sink Advanced Heat Sink Triangulator Improved Phase Shifter Core Shielding Heavy Armor Plating Improved Point Defense System Advanced Recalibrator > --- WEAPON ----------- Phase Gun Dispersion Rifle Quantum Rifle Matter Neutralizer Enhanced Nova Cannon Enhanced Nova Cannon > --- INVENTORY -------- Armored Heavy Treads Phase Gun Enhanced Nova Cannon Phasing Sabre [Rating: 146] Favorites ----------- Power Antimatter Reactor Engine Light Angular Momentum Engine Power Core Enhanced Nuclear Core Reactor Antimatter Reactor Propulsion Wheel Treads Advanced Treads Leg Flexi-carbon Leg Wheel Wheel Hover Unit Antigrav System Flight Unit Field Propulsion Array Utility Weapon Cycler Device Weapon Cycler Storage Compact Battery Processor Advanced Targeting Computer Hackware Improved System Shield Protection Hardened Medium Armor Plating Weapon Cooled Particle Cannon Energy Gun Precision Beam Rifle Energy Cannon Cooled Particle Cannon Ballistic Gun Heavy Battle Rifle Ballistic Cannon Heavy Flak Cannon Launcher Rocket Array Special Weapon Mining Laser Slashing Weapon Phasing Sabre Piercing Weapon Heavy Pick Special Melee Weapon Advanced Datajack Build | -11 -10 -9 -8 -7 -7 -6 -6 -6 -6 -6 -6 -6 -5 -5 -5 -4 -4 -4 -4 -3 ------- Run | Yrd Mat Mat Mat Fac Sto Fac Was Fac Ext Cet Arc Hub Fac Upp Upp Fac Was Fac DSF Res Slots Evolved 14 | . . 2 2 2 . 2 . . . . . . 2 . . 2 . . . 2 Power 1 | . . . . 1 . . . . . . . . . . . . . . . . Propulsion 2 | . . . 1 . . . . . . . . . 1 . . . . . . . Utility 7 | . . 1 . 1 . 1 . . . . . . 1 . . 2 . . . 1 Weapon 4 | . . 1 1 . . 1 . . . . . . . . . . . . . 1 Parts Attached 246 | 5 6 22 23 5 22 19 5 1 11 2 6 20 29 21 . 13 4 . 15 17 Power 36 | 1 . 3 3 . 4 4 2 . . . 2 4 2 3 . 1 2 . 2 3 Engine 17 | 1 . 3 3 . 1 3 . . . . . 2 2 1 . . 1 . . . Core 11 | . . . . . 3 1 . . . . 2 1 . 2 . . . . 2 . Reactor 8 | . . . . . . . 2 . . . . 1 . . . 1 1 . . 3 Propulsion 58 | 2 2 4 6 . 7 4 1 . 2 1 2 3 9 3 . 3 . . 8 1 Treads 26 | 2 . . 2 . 7 1 1 . 2 1 2 3 . 1 . . . . 3 1 Leg 9 | . . . . . . . . . . . . . 7 2 . . . . . . Wheel 19 | . 2 4 4 . . 3 . . . . . . 1 . . . . . 5 . Hover 1 | . . . . . . . . . . . . . 1 . . . . . . . Flight 3 | . . . . . . . . . . . . . . . . 3 . . . . Utility 79 | . 3 6 7 4 4 8 2 . 2 . 1 10 8 9 . 6 2 . . 7 Device 50 | . . 3 2 4 1 8 2 . . . . 7 6 4 . 6 1 . . 6 Storage 3 | . . . . . . . . . . . . . . 3 . . . . . . Processor 8 | . 2 1 2 . . . . . . . . 2 . 1 . . . . . . Hackware 2 | . 1 . . . . . . . . . . . 1 . . . . . . . Protection 16 | . . 2 3 . 3 . . . 2 . 1 1 1 1 . . 1 . . 1 Artifact . | . . . . . . . . . . . . . . . . . . . . . Weapon 73 | 2 1 9 7 1 7 3 . 1 7 1 1 3 10 6 . 3 . . 5 6 Energy Gun 39 | 2 1 8 7 1 . . . . 4 . 1 2 6 1 . . . . 5 1 Energy Cannon 19 | . . 1 . . 7 1 . 1 . . . 1 2 1 . 1 . . . 4 Ballistic Gun 3 | . . . . . . . . . . . . . 1 2 . . . . . . Ballistic Cannon 3 | . . . . . . 2 . . 1 . . . . . . . . . . . Launcher 3 | . . . . . . . . . 1 1 . . . . . . . . . 1 Special Weapon 1 | . . . . . . . . . 1 . . . . . . . . . . . Impact Weapon . | . . . . . . . . . . . . . . . . . . . . . Slashing Weapon 3 | . . . . . . . . . . . . . 1 2 . . . . . . Piercing Weapon 1 | . . . . . . . . . . . . . . . . 1 . . . . Special Melee Weapon 1 | . . . . . . . . . . . . . . . . 1 . . . . Unidentified Prototypes 10 | . . 1 3 . 3 . . . . . . 1 1 . . . 1 . . . Parts Lost 92 | . 2 8 2 . 7 4 . . 8 3 1 11 27 10 3 . 1 . . 5 Power 12 | . 1 1 . . 1 1 . . 1 1 . 1 2 3 . . . . . . Propulsion 23 | . . 4 1 . 4 1 . . 1 . . 1 8 2 1 . . . . . Utility 29 | . 1 . 1 . 1 2 . . 1 . . 6 9 2 2 . 1 . . 3 Weapon 28 | . . 3 . . 1 . . . 5 2 1 3 8 3 . . . . . 2 Highest Loss Streak 10 | . 1 4 1 . 4 2 . . 5 3 1 7 10 4 2 . 1 . . 4 To Critical Strikes . | . . . . . . . . . . . . . . . . . . . . . Average Backups 4 | 1 4 4 4 3 4 4 4 4 3 2 2 4 3 4 4 4 4 4 4 4 Power . | . . . 1 . . . 1 1 . . . . . . . . . . . . Propulsion . | 1 2 1 . 1 . . . 1 1 1 1 1 . . . . 1 2 1 1 Utility . | . . 1 1 . 1 . . . . 1 1 1 . . . . . 1 . . Weapon 2 | . 1 . 1 2 2 3 3 2 1 . . 1 2 3 4 4 2 1 3 2 Tool/Special . | . . . . . . . . . . . . . . . . . . . . . Unused Backups 28 | . 3 1 5 2 7 . 1 . . . . 1 1 . . 2 1 . 3 1 Power 2 | . . . 2 . . . . . . . . . . . . . . . . . Propulsion 2 | . . . . . 1 . . . . . . . . . . . . . . 1 Utility 6 | . 1 1 1 1 . . . . . . . 1 1 . . . . . . . Weapon 18 | . 2 . 2 1 6 . 1 . . . . . . . . 2 1 . 3 . Tool/Special . | . . . . . . . . . . . . . . . . . . . . . Average Slot Usage (%) 84 | . 87 94 98 99 97 97 94 93 88 85 88 80 84 37 58 51 69 68 82 78 Engine 5 | . 7 8 8 15 6 6 4 . . . . . 7 1 . . 3 5 1 . Core 2 | . . . . . 8 6 . . . . 6 8 2 2 . . . . 3 . Reactor 2 | . . . . . . . 7 13 12 6 3 1 . . . 3 5 5 5 7 Treads 8 | . 9 . 4 15 20 13 5 6 9 11 13 11 9 . 5 3 . . 7 8 Leg 1 | . . . . . . . . . . . . . 7 6 1 . . . . . Wheel 6 | . 18 20 21 7 . 4 8 6 1 . . . 1 . . . . . 2 . Device 15 | . . 6 9 14 14 23 26 26 24 20 20 17 19 4 10 10 21 21 25 25 Processor 7 | . 19 15 9 7 7 6 6 6 6 6 6 5 9 1 5 5 5 5 5 . Protection 4 | . . 10 8 7 7 1 . . 1 6 6 5 . 1 5 5 5 5 5 7 Energy Gun 14 | . 28 26 33 30 1 . . . 5 19 23 22 18 . 5 2 . . 23 14 Energy Cannon 8 | . . 4 2 . 28 27 26 26 16 . . . 1 . . 2 . . . 11 Ballistic Cannon 1 | . . . . . . 4 6 6 6 . . . . . . . . . . . Slashing Weapon 1 | . . . . . . . . . . . . . . 8 5 5 5 5 . . Peak Build Rating 146 | 5 10 18 37 44 54 65 75 75 76 68 70 73 82 49 45 92 98 87 121 146 Average Rating 53 | 4 7 13 31 42 49 61 72 75 71 63 65 62 67 27 41 55 88 87 110 131 On Entrance 51 | . 5 7 18 37 44 47 62 75 75 68 63 69 36 13 45 34 92 87 87 121 Avg Prop Armor Cover (%) 4 | . . . 2 2 2 6 2 2 2 . . . 6 7 7 18 . . . . Naked Turns 60 | . . . . . . . . . . . . 7 . . . . . . . 53 Heaviest Build 119 | 8 8 26 31 38 62 63 77 78 80 66 65 63 51 28 21 41 30 29 64 119 Greatest Support 140 | 40 40 32 44 44 67 68 70 70 93 90 93 100 123 50 28 30 30 30 120 140 Greatest Overweight (x) 14 | 1 . 4 1 . 14 6 2 1 1 . . 2 3 2 . 1 . . 3 3 Average Overweight (x) . | . . . . . . . . 1 . . . . . . . . . . . . Largest Inventory Capacity 5 | 5 5 5 5 5 5 5 5 5 5 5 5 5 5 5 5 5 5 5 5 5 Average Capacity 5 | 5 5 5 5 5 5 5 5 5 5 5 5 5 5 5 5 5 5 5 5 5 Most Carried 5 | 3 5 5 5 5 5 5 5 5 5 5 5 5 5 5 4 5 5 5 5 5 Average Carried 4 | 1 4 4 4 3 4 4 4 5 4 3 3 4 3 4 4 4 4 5 4 4 Final Capacity 5 | 5 5 5 5 5 5 5 5 5 5 5 5 5 5 5 5 5 5 5 5 5 Final Carried 5 | 3 5 5 5 5 4 5 5 5 5 3 4 5 5 4 4 5 5 5 5 4 Class Distribution -------------------- 23% | Scavenger-Gunner 20% | Gunner 14% | Mutant 9% | Tank 7% | Scavenger-Tank 5% | Scavenger-Executioner 5% | Scavenger-Mutant 4% | Commander-Gunner 3% | Commander-Tank Dominant Class ---------------- Mutant | -10/Materials Tank | -9/Materials Gunner | -8/Materials Gunner | -7/Factory Gunner | -7/Storage Scavenger-Gunner | -6/Factory Scavenger-Gunner | -6/Waste Scavenger-Gunner | -6/Factory Scavenger-Gunner | -6/Extension Scavenger-Tank | -6/Cetus Scavenger-Tank | -6/Archives Scavenger-Tank | -6/Hub_04(d) Scavenger-Gunner | -5/Factory Mutant | -5/Upper Caves Scavenger-Mutant | -5/Upper Caves Scavenger-Gunner | -4/Factory Gladiator | -4/Waste Gladiator | -4/Factory Tank | -4/DSF Scavenger-Executioner | -3/Research Resources | -11 -10 -9 -8 -7 -7 -6 -6 -6 -6 -6 -6 -6 -5 -5 -5 -4 -4 -4 -4 -3 ----------- Run | Yrd Mat Mat Mat Fac Sto Fac Was Fac Ext Cet Arc Hub Fac Upp Upp Fac Was Fac DSF Res Matter Collected 4464 | 230 70 314 518 180 294 330 226 24 630 107 78 348 291 273 . . 174 . 44 333 Remotely 66 | . . . . . . 66 . . . . . . . . . . . . . . Salvage Created 13941 | . 227 1249 1614 598 2999 1118 1615 24 1380 112 . 334 1622 202 . . . . 292 555 Parts 508 | . 7 66 81 16 127 30 17 . 58 2 . 8 58 5 . . . . 9 24 Haulers Intercepted 16 | . . 3 6 . 4 1 . . 2 . . . . . . . . . . . Recyclers Shooed 5 | . . . 1 . 1 1 . . . . . . 2 . . . . . . . Parts Field Recycled . | . . . . . . . . . . . . . . . . . . . . . Retrieved Matter . | . . . . . . . . . . . . . . . . . . . . . Parts Self-Destructed 5 | . . . . . . . . . . . . . . 5 . . . . . . Prevented 4 | . . . . . . . . . . . . . . 4 . . . . . . Parts Restored 1 | . . . . . . . . . . . . . . . . . . . . 1 Broken 1 | . . . . . . . . . . . . . . . . . . . . 1 Kills | -11 -10 -9 -8 -7 -7 -6 -6 -6 -6 -6 -6 -6 -5 -5 -5 -4 -4 -4 -4 -3 ------- Run | Yrd Mat Mat Mat Fac Sto Fac Was Fac Ext Cet Arc Hub Fac Upp Upp Fac Was Fac DSF Res Combat Hostiles Destroyed 196 | . 4 23 28 10 49 16 6 . 14 3 . 6 22 3 . . . . 4 8 Melee 3 | . . . . . . . . . . . . . . 3 . . . . . . Guns 86 | . 4 18 25 10 1 . . . 1 1 . 5 16 . . . . . 3 2 Cannons 86 | . . 3 3 . 40 14 4 . 13 . . . 4 . . . . . . 5 AOE 5 | . . 1 . . 2 . . . . 2 . . . . . . . . . . Classes Destroyed 24 | . 4 5 2 1 4 2 1 . 1 . . 1 1 1 . . . . 1 . Worker 13 | . 1 1 . . 4 1 . . 3 . . 1 2 . . . . . . . Builder 10 | . . 2 1 . 1 . . . 3 . . . 2 . . . . . . 1 Tunneler 1 | . . . 1 . . . . . . . . . . . . . . . . . Hauler 16 | . . 3 6 . 4 1 . . 2 . . . . . . . . . . . Recycler 9 | . . 1 1 1 1 1 . . 3 . . . 1 . . . . . . . Carrier 1 | . . . . . . . . . . . . . . . . . . . 1 . Mechanic 2 | . . . . . 1 . . . . . . . 1 . . . . . . . Operator 7 | . 1 . 1 . 3 . . 1 1 . . . . . . . . . . . Watcher 13 | . 1 1 3 . 1 2 . . 1 1 . . 3 . . . . . . . Swarmer 21 | . . 4 10 . . . . . 3 . . . 4 . . . . . . . Saboteur 1 | . . . . . . 1 . . . . . . . . . . . . . . Grunt 98 | . 4 15 10 7 32 11 . . 5 . . 5 7 2 . . . . . . Brawler 5 | . . . . . 3 1 . . . . . . 1 . . . . . . . Duelist 1 | . . . . . . 1 . . . . . . . . . . . . . . Protector 1 | . . . . . 1 . . . . . . . . . . . . . . . Sentry 30 | . . 4 7 1 8 1 . . 4 . . . 3 . . . . . 1 1 Demolisher 2 | . . . . . 2 . . . . . . . . . . . . . . . Specialist 5 | . . . . . . . . . . . . . 3 . . . . . 2 . Hunter 5 | . . . 1 . . . . . . . . . 2 . . . . . . 2 Programmer 14 | . . . . 2 3 1 . . 1 . . . 2 . . . . . 1 4 Heavy 1 | . . . . . . . . . . . . 1 . . . . . . . . Behemoth 1 | . . . . . . . . . 1 . . . . . . . . . . . Compactor 6 | . . . . . . . 6 . . . . . . . . . . . . . Cetus Guard 3 | . . . . . . . . . . 3 . . . . . . . . . . Thug 2 | . . . . . . . . . 1 . . . . . . . . . . 1 Butcher 2 | . . . . . . . . . . 2 . . . . . . . . . . Mutant 1 | . . . . . . . . . . . . . . 1 . . . . . . Best Kill Streak 15 | . 3 8 5 3 12 6 4 1 9 4 . 3 15 2 . . . . 2 3 Combat Bots Only 11 | . 2 4 4 3 11 5 4 . 3 3 . 3 8 2 . . . . 2 2 Max Kills in Single Turn 4 | . 1 2 2 1 4 1 1 1 3 3 . 1 2 1 . . . . 1 1 Gunslinging 1 | . . 1 1 . . . . . . . . . 1 . . . . . . . Exploded 2 | . . 1 . . 2 . . . . 2 . . . . . . . . . . Melee 1 | . . . . . . . . . . . . . . 1 . . . . . . Uniques/NPCs Destroyed . | . . . . . . . . . . . . . . . . . . . . . Combat | -11 -10 -9 -8 -7 -7 -6 -6 -6 -6 -6 -6 -6 -5 -5 -5 -4 -4 -4 -4 -3 -------- Run | Yrd Mat Mat Mat Fac Sto Fac Was Fac Ext Cet Arc Hub Fac Upp Upp Fac Was Fac DSF Res Hostile Shots Fired 1288 | . 36 84 65 82 245 49 . . 154 21 4 96 217 43 13 . . . 14 165 Missed 339 | . 10 18 18 32 75 11 . . 40 4 1 19 61 13 2 . . . 4 31 Hits 949 | . 26 66 47 50 170 38 . . 114 17 3 77 156 30 11 . . . 10 134 Melee 4 | . . . . . 2 1 . . . . . . . 1 . . . . . . Projectile 945 | . 26 66 47 50 168 37 . . 114 17 3 77 156 29 11 . . . 10 134 AOE 6 | . . . . . 6 . . . . . . . . . . . . . . . Critical Strikes 34 | . 1 1 2 . 10 . . . 2 1 . 2 5 2 . . 1 . . 7 Actively Blocked 5 | . . . . . . . . . . . . . . . . . . . . 5 Part Disruptions 3 | . . . . . . 1 . . . . . . 1 . . . . . . 1 Actively Blocked 1 | . . . . . . 1 . . . . . . . . . . . . . . Damage Taken 17122 | . 324 957 591 774 2603 714 . . 1497 460 74 1865 3036 627 187 . 79 . 169 3165 Core 3611 | . 41 367 47 280 235 48 . . 141 39 . 450 533 98 15 . 9 . . 1308 Absorbed by Shields 365 | . . . . . . . . . 184 80 . . 101 . . . . . . . Reduced by Siege Mode 38 | . . . . . . . . . . . . . . . . . . . . 38 Redirected to Shielding 34 | . . 5 . . . . . . . . . . . 12 3 . 2 . . 12 Ignored by Resistances 264 | . . . . . . . . . . . . . 264 . . . . . . . Regen/Repaired (Parts) 535 | . . 23 . 23 245 . . . . . . . . . . . 15 . 74 155 Core Remaining (%) 57 | 100 83 8 91 . 26 . . . . . . 20 . . 35 . . . 99 . Volleys Fired 494 | . 35 67 62 31 87 33 22 2 43 5 3 22 61 . . . . . 6 15 Largest 6 | . 2 3 4 4 4 5 5 5 5 5 3 4 5 . . . . . 5 6 Hottest 615 | . 90 189 245 246 246 229 229 229 337 297 218 299 390 . . . . . 440 615 Shots Fired 1759 | . 70 179 231 123 332 165 95 10 161 15 9 75 187 . . . . . 30 77 Gun 940 | . 70 161 214 123 12 . . . 30 9 9 70 165 . . . . . 30 47 Cannon 812 | . . 18 17 . 320 165 95 10 128 2 . 5 22 . . . . . . 30 Launcher 7 | . . . . . . . . . 3 4 . . . . . . . . . . Special . | . . . . . . . . . . . . . . . . . . . . . Kinetic 85 | . . . . . . 31 8 2 44 . . . . . . . . . . . Thermal 1552 | . 70 158 220 123 332 134 87 8 92 11 9 75 126 . . . . . 30 77 Explosive 7 | . . . . . . . . . 3 4 . . . . . . . . . . Electromagnetic 115 | . . 21 11 . . . . . 22 . . . 61 . . . . . . . Robot Hit Streak 21 | . 13 21 20 13 21 13 14 2 9 16 11 17 19 . . . . . 5 9 Robot Miss Streak 8 | . 3 5 2 3 2 4 4 3 8 1 1 5 4 . . . . . 2 4 Penetration Max . | . . . . . . . . . . . . . . . . . . . . . Secondary Targets 13 | . . 3 2 . . . . . . . . 3 3 . . . . . 2 . Max Gunslinging Chain 1 | . . 1 1 . . . . . . . . 1 1 . . . . . 1 . Shots Hit Robots 1134 | . 48 116 151 70 210 99 65 4 93 14 9 52 125 18 . . . . 16 44 Core Hits 616 | . 16 49 66 24 106 58 15 2 76 55 6 21 92 7 . . . . 9 14 Critical Kills 12 | . . . . . 4 1 2 . 3 . . . . . . . . . . 2 Critical Parts Destroyed 2 | . . . . . . . . . 1 . . . . . . . . . 1 . Critical Strikes 54 | . 8 1 14 6 4 1 2 . 5 . 1 1 4 2 . . . . 1 4 Burn 37 | . 8 1 14 6 . . . . 1 . 1 1 3 . . . . . . 2 Meltdown 9 | . . . . . 4 1 2 . . . . . . . . . . . . 2 Destroy 5 | . . . . . . . . . 4 . . . . . . . . . 1 . Corrupt 1 | . . . . . . . . . . . . . 1 . . . . . . . Sever 2 | . . . . . . . . . . . . . . 2 . . . . . . Melee Attacks 25 | . . . . . . . . . . . . . 3 22 . . . . . . Impact . | . . . . . . . . . . . . . . . . . . . . . Slashing 25 | . . . . . . . . . . . . . 3 22 . . . . . . Piercing . | . . . . . . . . . . . . . . . . . . . . . Sneak Attacks . | . . . . . . . . . . . . . . . . . . . . . Combat Hostiles . | . . . . . . . . . . . . . . . . . . . . . Follow-up Attacks 1 | . . . . . . . . . . . . . . 1 . . . . . . Damage Inflicted 31360 | . 569 1725 2749 1342 6989 3092 2105 104 3803 1346 208 1317 3077 798 . . . . 515 1621 Guns 12437 | . 569 1432 2543 1342 127 . . . 556 181 208 1164 2740 . . . . . 515 1060 Cannons 15479 | . . 143 206 . 6357 3049 2105 104 2440 33 . 152 329 . . . . . . 561 Explosions 2622 | . . 150 . . 498 35 . . 807 1132 . . . . . . . . . . Melee 798 | . . . . . . . . . . . . . . 798 . . . . . . Ramming 24 | . . . . . 7 8 . . . . . 1 8 . . . . . . . Kinetic 1393 | . . . . . . 537 136 15 705 . . . . . . . . . . . Thermal 24832 | . 569 1450 2499 1342 6484 2512 1969 89 1843 214 208 1316 2201 . . . . . 515 1621 Explosive 2437 | . . . . . 498 . . . 807 1132 . . . . . . . . . . Electromagnetic 1876 | . . 275 250 . . 35 . . 448 . . . 868 . . . . . . . Impact . | . . . . . . . . . . . . . . . . . . . . . Slashing 798 | . . . . . . . . . . . . . . 798 . . . . . . Piercing . | . . . . . . . . . . . . . . . . . . . . . Highest Corruption 16 | . . 3 2 1 4 . 16 16 16 16 16 16 6 6 6 . . . . 11 Average Corruption 7 | . . 2 2 1 2 . 10 16 16 16 16 16 1 6 6 . . . . 5 Corruption Purged 1 | . . . . 1 . . . . . . . . . . . . . . . . Corruption Blocked . | . . . . . . . . . . . . . . . . . . . . . Effects 211 | . . 4 7 5 28 . 5 13 47 17 7 24 8 26 2 . . . . 18 Message Errors 52 | . . 2 2 . 5 . 1 5 9 4 3 5 4 7 . . . . . 5 Matter Fused 42 | . . . 2 1 6 . . 2 13 2 1 5 1 4 2 . . . . 3 Heat Flow Errors 19 | . . . 1 1 1 . . 1 2 1 1 2 . 4 . . . . . 5 Energy Discharges 29 | . . 1 . . 2 . . 3 7 5 2 4 . 4 . . . . . 1 Parts Rejected 4 | . . . . 1 . . . . 1 . . 2 . . . . . . . . Data Loss (minor) 26 | . . 1 2 1 4 . 2 1 5 3 . . 1 4 . . . . . 2 Data Loss (major) 10 | . . . . . 2 . . . 3 . . 2 . 2 . . . . . 1 Misfires 6 | . . . . . 1 . 1 . 1 . . 1 1 . . . . . . 1 Alerts 7 | . . . . . 2 . . 1 1 . . 1 1 1 . . . . . . Misdirections 2 | . . . . . . . . . 1 . . 1 . . . . . . . . Weapon Failures 14 | . . . . 1 5 . 1 . 4 2 . 1 . . . . . . . . Overload Shots . | . . . . . . . . . . . . . . . . . . . . . Overflow Damage 253 | . . . 13 . 143 28 . . 18 24 . . . 20 . . . . . 7 Projectiles 184 | . . . 13 . 120 28 . . 16 . . . . . . . . . . 7 Explosions 49 | . . . . . 23 . . . 2 24 . . . . . . . . . . Melee 20 | . . . . . . . . . . . . . . 20 . . . . . . Knockbacks 11 | . . . . . . 8 . 1 2 . . . . . . . . . . . Impact . | . . . . . . . . . . . . . . . . . . . . . Kinetic 10 | . . . . . . 7 . 1 2 . . . . . . . . . . . Secondary 1 | . . . . . . 1 . . . . . . . . . . . . . . Self-Inflicted Damage 306 | . . 67 . . 127 . . . 44 68 . . . . . . . . . . Shots 9 | . . 2 . . 2 . . . 2 3 . . . . . . . . . . Rammed 6 | . 1 . . . 1 2 . . . . 1 1 . . . . . . . . Targets Rammed 8 | . 1 . . . 1 2 . . . . 1 1 2 . . . . . . . Kicked 2 | . . . . . . . . . . . . . 2 . . . . . . . Crushed . | . . . . . . . . . . . . . . . . . . . . . Highest Temperature 1365 | . 318 561 728 536 386 520 331 228 533 193 236 723 631 235 . . 3 . 918 1365 Average Temperature 185 | . 124 168 181 195 65 164 153 110 193 83 104 273 168 104 . . 3 . 309 364 Received Heat Transfer 3387 | . 204 342 207 210 1056 216 . . 323 40 9 168 261 288 . . 27 . . 36 Effects 160 | . 1 11 30 9 . 7 . . 9 . . 35 8 . . . . . 15 35 Shutdowns 45 | . . 1 4 6 . 3 . . 4 . . 5 4 . . . . . 7 11 Energy Bleed 21 | . 1 3 5 . . . . . . . . 4 1 . . . . . 1 6 Interference 30 | . . 1 11 . . . . . 5 . . 11 . . . . . . . 2 Matter Decay 14 | . . 2 3 1 . 1 . . . . . 2 1 . . . . . . 4 Short Circuit 11 | . . 1 2 . . 1 . . . . . 3 . . . . . . 2 2 Damage (minor) 8 | . . 1 2 . . . . . . . . 1 2 . . . . . 1 1 Damage (major) 23 | . . . 3 . . 2 . . . . . 7 . . . . . . 4 7 Damage (core) 8 | . . 2 . 2 . . . . . . . 2 . . . . . . . 2 Siege Activations 1 | . . . . . . . . . . . . . . . . . . . . 1 Total Turns 7 | . . . . . . . . . . . . . . . . . . . . 7 Longest Duration 7 | . . . . . . . . . . . . . . . . . . . . 7 Martial Activations . | . . . . . . . . . . . . . . . . . . . . . Shielding Activations . | . . . . . . . . . . . . . . . . . . . . . Robots Disrupted . | . . . . . . . . . . . . . . . . . . . . . Combat Hostiles . | . . . . . . . . . . . . . . . . . . . . . Robots Corrupted 1 | . . . . . . . . . . . . . 1 . . . . . . . Combat Hostiles 1 | . . . . . . . . . . . . . 1 . . . . . . . Parts Fried 6 | . . 1 1 . . . . . . . . . 4 . . . . . . . Impact Corruptions . | . . . . . . . . . . . . . . . . . . . . . Robots Melted 19 | . . 1 . . 7 3 2 . . . . 1 1 . . . . . 2 2 Combat Hostiles 15 | . . 1 . . 6 2 2 . . . . 1 1 . . . . . 1 1 Parts Melted 103 | . 4 4 19 8 23 7 5 1 2 . 2 7 12 . . . . . 4 5 Heat Transferred 44204 | . 2140 3411 6401 3071 8572 3613 2895 124 3148 396 496 2189 5158 . . . . . 703 1887 Parts Sabotaged . | . . . . . . . . . . . . . . . . . . . . . Parts Stolen . | . . . . . . . . . . . . . . . . . . . . . Parts Stripped . | . . . . . . . . . . . . . . . . . . . . . Power Chain Reactions 3 | . . 3 . . . . . . . . . . . . . . . . . . Alert | -11 -10 -9 -8 -7 -7 -6 -6 -6 -6 -6 -6 -6 -5 -5 -5 -4 -4 -4 -4 -3 ------- Run | Yrd Mat Mat Mat Fac Sto Fac Was Fac Ext Cet Arc Hub Fac Upp Upp Fac Was Fac DSF Res Maximum Alert Level 4 | . . 1 2 . 4 3 1 . 2 2 1 3 2 . . . . . 1 1 Low Security (%) 56 | 100 100 85 86 100 16 . . 100 68 . 86 28 19 . . 100 100 100 42 80 Level 1 25 | . . 14 11 . 19 . 100 . 9 95 13 41 80 . . . . . 57 19 Level 2 8 | . . . 1 . 3 82 . . 22 4 . 6 . . . . . . . . Level 3 6 | . . . . . 35 17 . . . . . 23 . . . . . . . . Level 4 2 | . . . . . 24 . . . . . . . . . . . . . . . Level 5 . | . . . . . . . . . . . . . . . . . . . . . High Security . | . . . . . . . . . . . . . . . . . . . . . Max Security . | . . . . . . . . . . . . . . . . . . . . . Sterilizations 1 | . . . . . . . . . . . . . . . . . . . 1 . Peak Influence 1234 | . 72 228 400 84 1234 941 321 161 604 405 216 806 409 . . 37 50 5 388 246 Initial 548 | . . . 46 50 25 548 318 161 9 331 101 54 378 . . 37 . . 3 218 Average 259 | . 22 99 143 30 724 577 279 94 201 334 169 374 274 . . 7 13 4 210 146 Influence Increases 9650 | . 226 745 867 325 1909 789 12 9 1088 193 175 1204 674 265 90 15 76 5 545 438 Destroy 0b10 Robot/C 4620 | . 80 460 560 200 1040 320 . . 460 80 80 480 440 40 . . . . 220 160 Destroy 0b10 Robot/NC 400 | . 15 40 65 5 80 25 . 5 80 5 . 30 45 . . . . . . 5 Destroy Leader 966 | . 32 108 148 50 240 66 . . 44 . . 92 106 . . . . . 40 40 Allied During Kill 1331 | . . . . . 90 . . . 403 58 80 465 . . . . . . 206 29 Successful Hack 261 | . 24 4 45 38 77 12 . . 21 9 . . 5 . . . . 5 . 21 Select Force Hacks 60 | . 30 30 . . . . . . . . . . . . . . . . . . Disable Machine 420 | . . 30 30 15 90 150 . . . . 15 60 . . . . . . 15 15 Anti-Garrison Action 550 | . . . . . 200 200 . . . . . . . . . . . . . 150 Destroy Structure 427 | . . 13 4 2 92 16 12 4 35 41 . 32 18 . . . 76 . 64 18 Partial Spotted 30 | . . . 15 . . . . . . . . . . . . 15 . . . . Lose Combat Pursuer 585 | . 45 60 . 15 . . . . 45 . . 45 60 225 90 . . . . . Influence Decreases 9480 | . 226 633 868 380 759 1084 693 219 516 531 273 586 1208 505 30 75 76 . 162 656 Entered New Map 2685 | . . . 66 61 31 658 593 69 11 261 153 102 396 89 . 23 . . 2 170 Time Decay 4854 | . 216 403 482 319 478 386 100 150 385 180 70 254 542 365 20 52 66 . . 386 Lost Part 841 | . 10 80 20 . 70 40 . . 80 30 10 110 270 51 10 . 10 . . 50 Lost Ally 650 | . . . . . 180 . . . 40 60 40 120 . . . . . . 160 50 Purge Threat 450 | . . 150 300 . . . . . . . . . . . . . . . . . Squads Dispatched 60 | . 2 6 2 2 14 6 . . 2 . . 8 9 . . . . . 2 7 Investigation 15 | . 1 2 . . 6 2 . . 1 . . 1 2 . . . . . . . Extermination 12 | . . . . 2 3 1 . . . . . . 3 . . . . . . 3 Reinforcement 23 | . 1 4 1 . 2 2 . . 1 . . 6 3 . . . . . 2 1 Assault 5 | . . . . . 2 1 . . . . . . . . . . . . . 2 Garrison 5 | . . . 1 . 1 . . . . . . 1 1 . . . . . . 1 Intercept . | . . . . . . . . . . . . . . . . . . . . . Searches Triggered . | . . . . . . . . . . . . . . . . . . . . . Construction Impeded 5 | . . . 1 . . 1 . . 1 . . 2 . . . . . . . . Haulers Reinforced 2 | . . . . . 1 . . . . . . 1 . . . . . . . . Active Scanning Responses . | . . . . . . . . . . . . . . . . . . . . . Cargo Convoy Interrupts . | . . . . . . . . . . . . . . . . . . . . . Stealth | -11 -10 -9 -8 -7 -7 -6 -6 -6 -6 -6 -6 -6 -5 -5 -5 -4 -4 -4 -4 -3 --------- Run | Yrd Mat Mat Mat Fac Sto Fac Was Fac Ext Cet Arc Hub Fac Upp Upp Fac Was Fac DSF Res Distress Signals 20 | . . 8 3 . 2 . . . . 1 . 4 2 . . . . . . . Communications Jammed . | . . . . . . . . . . . . . . . . . . . . . Distress Signals . | . . . . . . . . . . . . . . . . . . . . . Times Spotted 356 | . 15 34 39 13 59 28 6 1 23 4 5 31 37 20 7 3 5 . 8 18 Peak Tracking Total 12 | . 4 6 4 3 12 6 4 1 4 5 2 11 7 6 6 3 2 . 5 11 Tactical Retreats 27 | . 3 3 . 1 . . . . 3 . . 2 4 9 2 . . . . . Traps | -11 -10 -9 -8 -7 -7 -6 -6 -6 -6 -6 -6 -6 -5 -5 -5 -4 -4 -4 -4 -3 ------- Run | Yrd Mat Mat Mat Fac Sto Fac Was Fac Ext Cet Arc Hub Fac Upp Upp Fac Was Fac DSF Res Traps Triggered 19 | . . 2 4 1 3 3 . . 3 . . . 1 . . 1 . . 1 . Indirectly . | . . . . . . . . . . . . . . . . . . . . . Trap Hack Attempts . | . . . . . . . . . . . . . . . . . . . . . Triggered . | . . . . . . . . . . . . . . . . . . . . . Disarmed 4 | . . 4 . . . . . . . . . . . . . . . . . . Reprogrammed . | . . . . . . . . . . . . . . . . . . . . . Reused . | . . . . . . . . . . . . . . . . . . . . . Traps Extracted . | . . . . . . . . . . . . . . . . . . . . . Installed . | . . . . . . . . . . . . . . . . . . . . . Triggered . | . . . . . . . . . . . . . . . . . . . . . Machines | -11 -10 -9 -8 -7 -7 -6 -6 -6 -6 -6 -6 -6 -5 -5 -5 -4 -4 -4 -4 -3 ---------- Run | Yrd Mat Mat Mat Fac Sto Fac Was Fac Ext Cet Arc Hub Fac Upp Upp Fac Was Fac DSF Res Machines Disabled 34 | . . 2 2 1 6 10 . . 3 . 1 4 . 1 . . . . 2 2 Max in Single Turn 2 | . . 1 1 1 2 2 . . 1 . . 1 . 1 . . . . 1 1 Garrison Access 4 | . . . 1 . 1 1 . . . . . . . . . . . . . 1 Machines Repaired . | . . . . . . . . . . . . . . . . . . . . . Machines Dismantled . | . . . . . . . . . . . . . . . . . . . . . Machines Sabotaged . | . . . . . . . . . . . . . . . . . . . . . Overloaded Fab Kills . | . . . . . . . . . . . . . . . . . . . . . Hacking | -11 -10 -9 -8 -7 -7 -6 -6 -6 -6 -6 -6 -6 -5 -5 -5 -4 -4 -4 -4 -3 --------- Run | Yrd Mat Mat Mat Fac Sto Fac Was Fac Ext Cet Arc Hub Fac Upp Upp Fac Was Fac DSF Res Machines Accessed 81 | . 6 10 14 5 15 6 . 1 7 1 1 2 3 . . 3 . 1 . 6 Terminals 50 | . 5 4 9 3 12 . . 1 7 1 . 2 1 . . 2 . 1 . 2 Fabricators 8 | . . . . . . 3 . . . . . . 2 . . 1 . . . 2 Repair Stations 7 | . . 2 1 1 2 1 . . . . . . . . . . . . . . Recycling Units 7 | . 1 2 1 . . 1 . . . . . . . . . . . . . 2 Scanalyzers 5 | . . 2 2 1 . . . . . . . . . . . . . . . . Garrison Access 3 | . . . 1 . 1 1 . . . . . . . . . . . . . . Total Hacks 215 | . 10 29 43 14 37 11 . 1 15 2 25 3 6 . . 6 . 2 . 11 Successful 101 | . 5 14 19 4 16 5 . 1 4 1 25 . 3 . . 1 . 1 . 2 Failed 113 | . 5 14 24 10 21 6 . . 11 1 . 3 3 . . 5 . 1 . 9 Catastrophic 25 | . 1 2 4 1 6 2 . . 5 . . 1 . . . 1 . . . 2 Database Lockouts 1 | . . 1 . . . . . . . . . . . . . . . . . . Manual 19 | . 1 6 . . 6 1 . . 3 1 . . . . . . . . . 1 Terminals 117 | . 9 8 27 9 32 . . 1 15 2 . 3 1 . . 5 . 2 . 3 Fabricators 16 | . . . . . . 5 . . . . . . 5 . . 1 . . . 5 Repair Stations 12 | . . 2 4 2 2 2 . . . . . . . . . . . . . . Recycling Units 8 | . 1 2 1 . . 1 . . . . . . . . . . . . . 3 Scanalyzers 29 | . . 17 9 3 . . . . . . . . . . . . . . . . Garrison Access 8 | . . . 2 . 3 3 . . . . . . . . . . . . . . Terminal Hacks 66 | . 4 2 11 2 13 . . 1 4 1 25 . 1 . . 1 . 1 . . Record 27 | . . . 1 . 1 . . . . . 25 . . . . . . . . . Part Schematic 1 | . . . . 1 . . . . . . . . . . . . . . . . Prototype ID Bank 9 | . 3 . 3 1 2 . . . . . . . . . . . . . . . Open Door 11 | . . . . . 5 . . 1 4 1 . . . . . . . . . . Open DSF 3 | . . . . . . . . . . . . . 1 . . 1 . 1 . . Unreport Threat 3 | . . 1 2 . . . . . . . . . . . . . . . . . Locate Traps 3 | . . . 1 . 2 . . . . . . . . . . . . . . . Disarm Traps 1 | . . 1 . . . . . . . . . . . . . . . . . . Dispatch Records 2 | . . . . . 2 . . . . . . . . . . . . . . . Maintenance Status 2 | . . . 1 . 1 . . . . . . . . . . . . . . . Investigation Status 1 | . . . 1 . . . . . . . . . . . . . . . . . Hauler Manifests 2 | . 1 . 1 . . . . . . . . . . . . . . . . . Zone Layout 1 | . . . 1 . . . . . . . . . . . . . . . . . Fabricator Hacks 6 | . . . . . . 2 . . . . . . 2 . . . . . . 2 Network Status 1 | . . . . . . . . . . . . . 1 . . . . . . . Load Schematic 1 | . . . . . . 1 . . . . . . . . . . . . . . Build 4 | . . . . . . 1 . . . . . . 1 . . . . . . 2 Repair Station Hacks 5 | . . . 2 2 . 1 . . . . . . . . . . . . . . Scan Component 4 | . . . 2 1 . 1 . . . . . . . . . . . . . . Repair 1 | . . . . 1 . . . . . . . . . . . . . . . . Recycling Unit Hacks 2 | . . . 1 . . 1 . . . . . . . . . . . . . . Retrieve Components 2 | . . . 1 . . 1 . . . . . . . . . . . . . . Scanalyzer 13 | . . 9 4 . . . . . . . . . . . . . . . . . Insert Component 4 | . . 3 1 . . . . . . . . . . . . . . . . . Analyze 2 | . . 2 . . . . . . . . . . . . . . . . . . Retrieve Study 7 | . . 4 3 . . . . . . . . . . . . . . . . . Garrison Access Hacks 1 | . . . 1 . . . . . . . . . . . . . . . . . Seal Access 1 | . . . 1 . . . . . . . . . . . . . . . . . Unauthorized Hacks 8 | . 1 3 . . 3 1 . . . . . . . . . . . . . . Terminals . | . . . . . . . . . . . . . . . . . . . . . Fabricators . | . . . . . . . . . . . . . . . . . . . . . Repair Stations 3 | . . 1 . . 2 . . . . . . . . . . . . . . . Patch 3 | . . 1 . . 2 . . . . . . . . . . . . . . . Recycling Units 3 | . 1 2 . . . . . . . . . . . . . . . . . . Reject 1 | . . 1 . . . . . . . . . . . . . . . . . . Tunnel 2 | . 1 1 . . . . . . . . . . . . . . . . . . Scanalyzers . | . . . . . . . . . . . . . . . . . . . . . Garrison Access 2 | . . . . . 1 1 . . . . . . . . . . . . . . Jam 2 | . . . . . 1 1 . . . . . . . . . . . . . . Data Cores Recovered 5 | . 1 . 1 . 2 . . 1 . . . . . . . . . . . . Used 1 | . . . . . 1 . . . . . . . . . . . . . . . Hacking Detections 64 | . 3 7 13 5 11 6 . . 6 1 . 2 1 . . 3 . 1 . 5 Full Trace Events 10 | . 1 1 1 . 3 1 . . 1 . . 1 1 . . . . . . . Feedback Events . | . . . . . . . . . . . . . . . . . . . . . Feedback Blocked . | . . . . . . . . . . . . . . . . . . . . . Robot Schematics Acquired . | . . . . . . . . . . . . . . . . . . . . . Robots Built . | . . . . . . . . . . . . . . . . . . . . . Authchips . | . . . . . . . . . . . . . . . . . . . . . Time . | . . . . . . . . . . . . . . . . . . . . . Total Robot Build Rating . | . . . . . . . . . . . . . . . . . . . . . Part Schematics Acquired 3 | . . 2 . 1 . . . . . . . . . . . . . . . . Parts Built 7 | . . . . . . 3 . . . . . . 1 . . . . . . 3 Authchips . | . . . . . . . . . . . . . . . . . . . . . Time 372 | . . . . . . 25 . . . . . . 139 . . . . . . 208 Total Part Build Rating 39 | . . . . . . 3 . . . . . . 9 . . . . . . 27 Part Studies Acquired 7 | . . 4 3 . . . . . . . . . . . . . . . . . Parts Repaired 1 | . . . . 1 . . . . . . . . . . . . . . . . Time 38 | . . . . 38 . . . . . . . . . . . . . . . . Parts Recycled . | . . . . . . . . . . . . . . . . . . . . . Recycled Matter . | . . . . . . . . . . . . . . . . . . . . . Retrieved Matter . | . . . . . . . . . . . . . . . . . . . . . Retrieved Components 11 | . . . 9 . . 2 . . . . . . . . . . . . . . Parts Scanalyzed 3 | . . 2 1 . . . . . . . . . . . . . . . . . Part Schematics Acquired 2 | . . 2 . . . . . . . . . . . . . . . . . . Parts Damaged . | . . . . . . . . . . . . . . . . . . . . . Bothacking | -11 -10 -9 -8 -7 -7 -6 -6 -6 -6 -6 -6 -6 -5 -5 -5 -4 -4 -4 -4 -3 ------------ Run | Yrd Mat Mat Mat Fac Sto Fac Was Fac Ext Cet Arc Hub Fac Upp Upp Fac Was Fac DSF Res Used RIF Installer . | . . . . . . . . . . . . . . . . . . . . . Robots Hacked . | . . . . . . . . . . . . . . . . . . . . . Non-combat . | . . . . . . . . . . . . . . . . . . . . . Combat . | . . . . . . . . . . . . . . . . . . . . . Robot Hacks Applied . | . . . . . . . . . . . . . . . . . . . . . Relay Couplers Released 3 | . . . . . . . . . . . . . . . . . . . . 3 Machine Destruction 3 | . . . . . . . . . . . . . . . . . . . . 3 Fabnet Peak Effective % . | . . . . . . . . . . . . . . . . . . . . . Robots Rewired 13 | . . . . . . . . . 10 . . . . 3 . . . . . . Allies Hacked 1 | . . . . . . . . . . . . . . . . . . . . 1 Hacks Repelled . | . . . . . . . . . . . . . . . . . . . . . Allies | -11 -10 -9 -8 -7 -7 -6 -6 -6 -6 -6 -6 -6 -5 -5 -5 -4 -4 -4 -4 -3 -------- Run | Yrd Mat Mat Mat Fac Sto Fac Was Fac Ext Cet Arc Hub Fac Upp Upp Fac Was Fac DSF Res Total Allies 52 | . . . . . 10 . . . 15 5 . . . 3 . . 19 . . . Largest Group 19 | . . . . . 10 . . . 13 11 11 8 . 3 3 . 19 14 14 4 Highest-Rated Group 767 | . . . . . 173 . . . 482 767 767 562 . 90 90 . 684 538 538 163 Highest-Rated Ally 159 | . . . . . 29 . . . 159 159 159 96 . 30 30 . 50 50 50 46 Initial Warlord ECA Mod 9 | . . . . . . . . . . . . . . . . . . . . 9 Total Orders . | . . . . . . . . . . . . . . . . . . . . . Ally Attacks 432 | . . . . . 29 . . . 79 17 20 102 . . . . 108 . 57 20 Total Damage 12992 | . . . . . 389 . . . 2097 357 582 3646 . . . . 3489 . 2103 329 Kills 62 | . . . . . 4 . . . 12 1 4 25 . . . . 10 . 6 . Allies Corrupted 1 | . . . . . 1 . . . . . . . . . . . . . . . Allies Melted 2 | . . . . . . . . . . . . . . . 2 . . . . . Intel | -11 -10 -9 -8 -7 -7 -6 -6 -6 -6 -6 -6 -6 -5 -5 -5 -4 -4 -4 -4 -3 ------- Run | Yrd Mat Mat Mat Fac Sto Fac Was Fac Ext Cet Arc Hub Fac Upp Upp Fac Was Fac DSF Res Active Infowar (turns) 2276 | . 686 438 . . . . . . . . . . 6 . . 49 173 8 59 857 Optics 1124 | . 686 438 . . . . . . . . . . . . . . . . . . IFF 414 | . . . . . . . . . . . . . . . . 27 173 8 59 147 Triangulation 1146 | . . . . . . . . . . . . . . . . 49 173 8 59 857 Jamming 6 | . . . . . . . . . . . . . 6 . . . . . . . Robot Analysis Total . | . . . . . . . . . . . . . . . . . . . . . Derelict Logs Recovered 1 | . . . . . . . . . . . . . . 1 . . . . . . Drone Launches . | . . . . . . . . . . . . . . . . . . . . . Drone Recoveries . | . . . . . . . . . . . . . . . . . . . . . Exploration | -11 -10 -9 -8 -7 -7 -6 -6 -6 -6 -6 -6 -6 -5 -5 -5 -4 -4 -4 -4 -3 ------------- Run | Yrd Mat Mat Mat Fac Sto Fac Was Fac Ext Cet Arc Hub Fac Upp Upp Fac Was Fac DSF Res Turns Passed 13452 | 71 750 1051 1241 953 1438 904 208 300 927 362 159 540 1540 1268 96 270 173 8 280 913 Spaces Moved 7811 | 40 452 771 872 449 669 471 76 123 352 190 80 308 775 974 61 307 259 3 146 433 Core 467 | 3 . 3 . . 3 . . . . . . 68 26 264 . . . . . 100 Treads 3960 | 37 131 . 173 449 666 313 64 123 352 190 80 240 543 29 61 61 . . 115 333 Legs 883 | . . . . . . . . . . . . . 202 681 . . . . . . Wheels 1993 | . 321 768 699 . . 158 12 . . . . . 4 . . . . . 31 . Hover . | . . . . . . . . . . . . . . . . . . . . . Flight 508 | . . . . . . . . . . . . . . . . 246 259 3 . . Fastest Speed 37 | 50 80 70 80 145 145 100 100 240 160 160 160 50 50 50 160 37 37 37 90 50 Average Speed 128 | 153 103 90 98 145 163 154 189 240 186 160 160 137 141 117 160 76 37 37 152 140 Slowest Speed 750 | 160 160 250 225 145 750 240 240 240 240 160 160 330 190 190 160 260 37 37 250 200 Overloaded Moves . | . . . . . . . . . . . . . . . . . . . . . Propulsion Burnouts . | . . . . . . . . . . . . . . . . . . . . . Robots Hopped . | . . . . . . . . . . . . . . . . . . . . . Potential Cave-ins . | . . . . . . . . . . . . . . . . . . . . . Cave-ins Triggered . | . . . . . . . . . . . . . . . . . . . . . Exploration Rate (%) 48 | 4 55 69 87 12 89 17 77 7 53 78 80 25 13 88 8 11 90 . 90 12 Regions Visited 20 Branch Regions 7 Pre-discovered Areas 2 | . 1 1 . . . . . . . . . . . . . . . . . . Known Exits Taken 3 | . 1 1 . . . . . . . . . . . . . . . 1 . . Unknown Exits Taken 12 | 1 . . 1 1 1 . . 1 1 1 1 1 1 1 1 . . . . . Scrap Searched 2 | . . . . . . . . . . . . . . 2 . . . . . . Spaces Dug 12 | . . . . . 10 2 . . . . . . . . . . . . . . Terrain Destroyed 294 | . . 10 . . 91 17 14 4 29 109 . 2 6 . . . . . . 12 Melee . | . . . . . . . . . . . . . . . . . . . . . Projectile 145 | . . . . . 65 17 14 4 24 1 . 2 6 . . . . . . 12 AOE 149 | . . 10 . . 26 . . . 5 108 . . . . . . . . . . Terrain Rammed . | . . . . . . . . . . . . . . . . . . . . . Walls Destroyed . | . . . . . . . . . . . . . . . . . . . . . Machines Disabled . | . . . . . . . . . . . . . . . . . . . . . Actions | -11 -10 -9 -8 -7 -7 -6 -6 -6 -6 -6 -6 -6 -5 -5 -5 -4 -4 -4 -4 -3 --------- Run | Yrd Mat Mat Mat Fac Sto Fac Was Fac Ext Cet Arc Hub Fac Upp Upp Fac Was Fac DSF Res Total 10177 | 47 664 980 1100 675 830 580 113 125 552 238 105 380 1095 1062 60 342 338 9 189 693 Wait 1211 | . 160 98 105 176 24 38 2 . 30 41 12 12 212 19 . 7 53 7 1 214 Move 7793 | 39 451 770 871 448 668 471 75 122 351 189 79 307 774 973 60 307 258 2 145 433 Hop . | . . . . . . . . . . . . . . . . . . . . . Pick Up 71 | 3 6 7 9 4 9 3 1 . 1 . 1 6 5 1 . 3 2 . 7 3 Fast Attach 134 | 5 3 5 11 2 5 4 1 . 6 1 2 14 20 19 . 14 9 . 8 5 Attach 35 | . . 6 2 2 2 3 . . 2 2 . 3 5 3 . . . . 3 2 Detach 3 | . . . . . . . . . . . . . . 1 . 1 . . 1 . Swap 135 | . 3 16 22 6 18 18 4 1 6 . 4 9 9 1 . . 1 . 5 12 Drop 135 | . 5 11 18 6 15 8 8 . 1 . 3 6 4 3 . 10 15 . 13 9 Fire 494 | . 35 67 62 31 87 33 22 2 43 5 3 22 61 . . . . . 6 15 Melee 24 | . . . . . . . . . . . . . 3 21 . . . . . . Ram 2 | . 1 . . . . . . . . . . 1 . . . . . . . . Kick 2 | . . . . . . . . . . . . . 2 . . . . . . . Crush 4 | . . . . . 1 2 . . . . 1 . . . . . . . . . Escape Stasis 6 | . . . . . . . . . 6 . . . . . . . . . . . Rewire 128 | . . . . . 1 . . . 106 . . . . 21 . . . . . . Trap . | . . . . . . . . . . . . . . . . . . . . . Miscellaneous . | . . . . . . . . . . . . . . . . . . . . . Route ------- -11/Scrapyard -10/Materials (discovered 2 exits: *Mat / *Min) -9/Materials (discovered 2 exits: *Mat / *Min) -8/Materials (discovered 2 exits: *Fac x2) -7/Factory -7/Storage (discovered 2 exits: *Fac / [*Rec]) -6/Factory -6/Waste -6/Factory -6/Extension (discovered 2 exits: *Fac / *Cet) -6/Cetus -6/Archives (discovered 3 exits: *Fac / *Hub x2) -6/Hub_04(d) -5/Factory -5/Upper Caves -5/Upper Caves -4/Factory (discovered 2 exits: *Res x2) -4/Waste -4/Factory -4/DSF -3/Research History --------- Turn | Location | Event 2 | -11/Scrapyard | Met Revision 17 14 | -11/Scrapyard | Discovered new exit (range 15) 72 | -11/Scrapyard | Entered Materials 268 | -10/Materials | Discovered new exit (range 15) 320 | -10/Materials | Build established: Mutant 628 | -10/Materials | Discovered new exit (range 6) 631 | -10/Materials | Identified exit to Mines 821 | -10/Materials | Identified exit to Materials 822 | -10/Materials | Entered another Materials area 822 | -9/Materials | Evolved 2 slots: Utility x1, Weapon x1 1065 | -9/Materials | Central database locked down 1244 | -9/Materials | Core integrity fell below 50% 1252 | -9/Materials | Core integrity fell below 20% 1273 | -9/Materials | Lost 4 parts (1p2n1w) 1343 | -9/Materials | Lost 3 parts (1n2w) 1440 | -9/Materials | Discovered new exit (range 14) 1583 | -9/Materials | Identified exit to Mines 1736 | -9/Materials | Build established: Tank 1828 | -9/Materials | Discovered new exit (range 15) 1872 | -9/Materials | Identified exit to Materials 1873 | -9/Materials | Entered another Materials area 1873 | -8/Materials | Evolved 2 slots: Propulsion x1, Weapon x1 2291 | -8/Materials | Discovered new exit (range 16) 2503 | -8/Materials | Garrison activated, responded to threat 2578 | -8/Materials | Discovered new exit (range 10) 2934 | -8/Materials | Build established: Gunner 3114 | -8/Materials | Entered Factory 3114 | -7/Factory | Evolved 2 slots: Power x1, Utility x1 3189 | -7/Factory | Repaired Broken Adv. Beam Rifle 3759 | -7/Factory | Discovered new exit (range 5) 4067 | -7/Factory | Entered Storage 4333 | -7/Storage | Destroyed 9 combat bots 4589 | -7/Storage | Garrison activated, responded to threat 4635 | -7/Storage | Destroyed 7 combat bots 4814 | -7/Storage | Core integrity fell below 50% 4864 | -7/Storage | Assisted by bots powering up and referring to "LRC-V3" 4878 | -7/Storage | Found Rocket Array 4881 | -7/Storage | Found Rocket Array 4913 | -7/Storage | Used back door to open Recycling access 4913 | -7/Storage | Discovered new exit (range 5) 5176 | -7/Storage | Build established: Commander-Gunner 5242 | -7/Storage | Discovered new exit (range 15) 5267 | -7/Storage | First assault squad dispatched 5319 | -7/Storage | Lost 9 allies 5367 | -7/Storage | Lost 4 parts (1p2n1u) 5374 | -7/Storage | Destroyed 11 combat bots 5505 | -7/Storage | Entered Factory 5505 | -6/Factory | Evolved 2 slots: Utility x1, Weapon x1 5669 | -6/Factory | Build established: Scavenger-Gunner 6166 | -6/Factory | Fabricated Wheel? 6205 | -6/Factory | First assault squad dispatched 6409 | -6/Factory | Sucked down chute 6409 | -6/Factory | Entered Waste 6415 | -6/Waste | Spotted C-40 Crusher 6422 | -6/Waste | Destroyed C-40 Crusher 6424 | -6/Waste | EMP discharged 6424 | -6/Waste | Spotted C-40 Crusher 6431 | -6/Waste | Destroyed C-40 Crusher 6455 | -6/Waste | Spotted C-40 Crusher 6460 | -6/Waste | Spotted C-40 Crusher 6460 | -6/Waste | Spotted C-40 Crusher 6464 | -6/Waste | Destroyed C-40 Crusher 6469 | -6/Waste | Destroyed C-40 Crusher 6473 | -6/Waste | Spotted C-40 Crusher 6481 | -6/Waste | Destroyed C-40 Crusher 6495 | -6/Waste | Destroyed C-40 Crusher 6524 | -6/Waste | EMP discharged 6524 | -6/Waste | System corruption reached 10% 6581 | -6/Waste | Discovered new exit (range 16) 6617 | -6/Waste | Entered Factory 6907 | -6/Factory | Discovered new exit (range 6) 6917 | -6/Factory | Entered Extension 7061 | -6/Extension | Rescued a captive Derelict 7265 | -6/Extension | Rescued a captive Derelict 7427 | -6/Extension | Rescued a captive Derelict 7428 | -6/Extension | Rescued a captive Derelict 7457 | -6/Extension | Rescued A7 7523 | -6/Extension | Spotted B-75 Beast 7543 | -6/Extension | Spotted B-75 Beast 7545 | -6/Extension | Destroyed B-75 Beast 7577 | -6/Extension | Allies destroyed B-75 Beast 7592 | -6/Extension | Lost 5 parts (1n1u3w) 7617 | -6/Extension | Disrupted transfer network 7811 | -6/Extension | Discovered new exit (range 16) 7813 | -6/Extension | Discovered new exit (range 15) 7844 | -6/Extension | Entered Cetus 7844 | -6/Cetus | Accompanied by 11 allies (A7) 7849 | -6/Cetus | Build established: Commander-Tank 7849 | -6/Cetus | Acquired a Cetus Manufacturing Module code from A7 7864 | -6/Cetus | Spotted Cetus Guard 7864 | -6/Cetus | Spotted Cetus Guard 7867 | -6/Cetus | Spotted Cetus Guard 7868 | -6/Cetus | Spotted Cetus Guard 7881 | -6/Cetus | Destroyed Cetus Guard 7881 | -6/Cetus | Destroyed Cetus Guard 7885 | -6/Cetus | Destroyed Cetus Guard 7886 | -6/Cetus | Allies destroyed Cetus Guard 7909 | -6/Cetus | Lost 3 parts (1p2w) 7916 | -6/Cetus | Lost 5 allies 7998 | -6/Cetus | Started Cetus Manufacturing Module 8009 | -6/Cetus | Escorted A7 to Cetus Mainframe 8023 | -6/Cetus | Manufactured an Enhanced Grunt 8048 | -6/Cetus | Manufactured an Enhanced Grunt 8073 | -6/Cetus | Manufactured an Enhanced Grunt 8098 | -6/Cetus | Manufactured an Enhanced Grunt 8123 | -6/Cetus | Manufactured an Enhanced Grunt 8166 | -6/Cetus | Discovered new exit (range 15) 8206 | -6/Cetus | Entered Archives 8206 | -6/Archives | Accompanied by 11 allies (A7) 8211 | -6/Archives | Received a hacking code to weaken MAIN.C 8276 | -6/Archives | Discovered new exit (range 15) 8292 | -6/Archives | Discovered new exit (range 16) 8305 | -6/Archives | Unable to access archive contents 8321 | -6/Archives | Unable to access archive contents 8321 | -6/Archives | Unable to access archive contents 8327 | -6/Archives | Discovered new exit (range 13) 8365 | -6/Archives | Entered Hub_04(d) 8365 | -6/Hub_04(d) | Accompanied by 8 allies 8373 | -6/Hub_04(d) | Discovered new exit (range 16) 8518 | -6/Hub_04(d) | Build established: Scavenger-Tank 8767 | -6/Hub_04(d) | Lost 3 parts (1p1u1w) 8790 | -6/Hub_04(d) | Core integrity fell below 50% 8797 | -6/Hub_04(d) | Lost 3 allies 8817 | -6/Hub_04(d) | Garrison activated, responded to threat 8836 | -6/Hub_04(d) | Released all parts (10) 8845 | -6/Hub_04(d) | Lost 3 allies 8866 | -6/Hub_04(d) | Lost 7 parts (1n4u2w) 8905 | -6/Hub_04(d) | Entered Factory 8905 | -5/Factory | Evolved 2 slots: Propulsion x1, Utility x1 9319 | -5/Factory | Fabricated Centrium Leg (x1) 9384 | -5/Factory | Discovered new exit (range 6) 9392 | -5/Factory | Build established: Scavenger-Gunner 10039 | -5/Factory | Garrison activated, responded to threat 10127 | -5/Factory | Destroyed 8 combat bots 10187 | -5/Factory | Lost 10 parts (2n3u5w) 10322 | -5/Factory | Lost 4 parts (1p1n1u1w) 10425 | -5/Factory | Core integrity fell below 50% 10445 | -5/Factory | Entered Upper Caves 10457 | -5/Upper Caves | Lost 9 parts (1p3n4u1w) 10701 | -5/Upper Caves | Encountered a Warlord checkpoint 10721 | -5/Upper Caves | Build established: Mutant 10913 | -5/Upper Caves | Learned Factory garrison access intel 11508 | -5/Upper Caves | Lost 4 parts (2n2w) 11588 | -5/Upper Caves | Discovered new exit (range 10) 11622 | -5/Upper Caves | Attacked by a delusional Derelict stockpiling Unaware 11656 | -5/Upper Caves | Lost 3 parts (2p1u) 11713 | -5/Upper Caves | Entered another Upper Caves area 11713 | -5/Upper Caves | Accompanied by 3 allies 11748 | -5/Upper Caves | Build established: Scavenger-Mutant 11766 | -5/Upper Caves | Discovered new exit (range 6) 11774 | -5/Upper Caves | Lost 3 allies 11809 | -5/Upper Caves | Entered Factory 11809 | -4/Factory | Evolved 2 slots: Utility x2 11810 | -4/Factory | Loaded intel: 4 garrison access locations 11890 | -4/Factory | Discovered new exit (range 13) 11980 | -4/Factory | Identified exit to DSF 12056 | -4/Factory | Discovered new exit (range 4) 12079 | -4/Factory | Sucked down chute 12079 | -4/Factory | Entered Waste 12080 | -4/Waste | Met a frightened Derelict 12090 | -4/Waste | Spotted C-40 Crusher 12101 | -4/Waste | Spotted C-40 Crusher 12107 | -4/Waste | Warlord forces began an assault 12110 | -4/Waste | Allies destroyed C-40 Crusher 12131 | -4/Waste | Spotted C-40 Crusher 12133 | -4/Waste | Allies destroyed C-40 Crusher 12143 | -4/Waste | Allies destroyed C-40 Crusher 12152 | -4/Waste | Spotted C-40 Crusher 12165 | -4/Waste | Spotted C-40 Crusher 12165 | -4/Waste | Allies destroyed C-40 Crusher 12167 | -4/Waste | Allies destroyed C-40 Crusher 12167 | -4/Waste | Spotted C-40 Crusher 12173 | -4/Waste | Allies destroyed C-40 Crusher 12178 | -4/Waste | Found Unknown Protection 12178 | -4/Waste | Identified Damper Plating 12192 | -4/Waste | Discovered new exit (range 13) 12197 | -4/Waste | Found Adv. Force Booster 12203 | -4/Waste | Lost 4 allies 12214 | -4/Waste | Found Prototype Reactor 12214 | -4/Waste | Identified Vortex Chain Reactor 12252 | -4/Waste | Entered Factory 12252 | -4/Factory | Accompanied by 14 allies 12253 | -4/Factory | Identified exit to DSF 12260 | -4/Factory | Entered DSF 12260 | -4/DSF | Accompanied by 14 allies 12305 | -4/DSF | Additional patrols routed to DSF 12363 | -4/DSF | Lost 5 allies 12422 | -4/DSF | Discovered new exit (range 16) 12457 | -4/DSF | Sterilization system engaged 12477 | -4/DSF | Ambient heat levels rising (+10) 12492 | -4/DSF | Ambient heat levels rising (+10) 12507 | -4/DSF | Ambient heat levels rising (+10) 12522 | -4/DSF | Ambient heat levels rising (+10) 12537 | -4/DSF | Ambient heat levels rising (+10) 12540 | -4/DSF | Entered Research 12540 | -3/Research | Accompanied by 4 allies 12540 | -3/Research | Evolved 2 slots: Utility x1, Weapon x1 12882 | -3/Research | P-80 Master assimilated allied A7-92E(g) 12928 | -3/Research | Build established: Scavenger-Executioner 12992 | -3/Research | Fabricated Adv. Heavy Siege Treads (x1) 13172 | -3/Research | Fabricated Quantum Reactor (x2) 13281 | -3/Research | Spotted B-86 Titan 13378 | -3/Research | System corruption reached 10% 13381 | -3/Research | Garrison activated, responded to threat 13398 | -3/Research | Released all parts (15) 13406 | -3/Research | Core integrity fell below 50% 13421 | -3/Research | Core integrity fell below 20% 13429 | -3/Research | Lost 4 parts (2u2w) 13451 | -3/Research | Found Gamma Bomb Array 13453 | -3/Research | Destroyed by S-43 Plague with Heavy Machine Gun Last Messages --------------- Overheating: Core damaged (-195). Overheating: Energy bleed (-15). Penetrated by Slug. System corrupted: Substantial component data lost. R-10 Processor collects Phase Gun. Penetrated by Slug. Slug penetrates Wall. Penetrated by Slug. Slug penetrates Wall. Penetrated by Slug. Slug penetrates Wall. Penetrated by Slug. ALERT: Cargo convoy en route, clear transfer corridor. AYRR0BSXL0UABLYM5T :4CHGXPL|JNYHMG ALERT: Potential suspicious activity detected, Programmers report to Research Zone 4P. Acquired Gamma Bomb Array. [Achievement: 20k Club] Map ----- +----------------------------------------------------+ | ????# #?# #?????????????????????????????? | | ????# #?? ??????????????????????????????? | | ????# #???? ????????????????????????????????? | | ???## #######+########??????????????????????????? | | ???# #??????????????????????????? | | ???# #??????????????????????????? | | ???# #??????????????????????????? | | # #??????????????????????????? | | # ############+### #??????????????????????????? | | #??#! # #??????????????????????????? | | ???# # ###########????????????????? | | ???# """"""" # ????????????????? | | ???# """Y""" # ???????????????? | | ???# # ???????????????? | | ???# / ???????????????? | | ???#+##############p############?????????????????? | | ?????????????# sp #??????????????????????? | | ?????????????# ss #??????????????????????? | | ?????????????# s #??????????????????????? | | ?????????????# k/ #??????????????????????? | | ?????????????# #??????????????????????? | | ?????????????# #??????????????????????? | | ?????????????# #??????????????????????? | | ?????????????# #??????????????????????? | | ?????????????# #??????????????????????? | | ?????????????# @#??????????????????????? | | ?????????????# +??????????????????????? | | ?????????????# #??????????????????????? | | ?????????????##############??????????????????????? | | ?????????????????????????????????????????????????? | | ?????????????????????????????????????????????????? | | ?????????????????????????????????????????????????? | | ?????????????????????????????????????????????????? | | ?????????????????????????????????????????????????? | | ?????????????????????????????????????????????????? | | ?????????????????????????????????????????????????? | | ?????????????????????????????????????????????????? | | ?????????????????????????????????????????????????? | | ?????????????????????????????????????????????????? | | ?????????????????????????????????????????????????? | | ?????????????????????????????????????????????????? | | ?????????????????????????????????????????????????? | | ?????????????????????????????????????????????????? | | ?????????????????????????????????????????????????? | | ?????????????????????????????????????????????????? | | ?????????????????????????????????????????????????? | | ?????????????????????????????????????????????????? | | ?????????????????????????????????????????????????? | | ?????????????????????????????????????????????????? | | ?????????????????????????????????????????????????? | +----------------------------------------------------+ Best States ------------- Heat Dissipation 98 Energy Generation 45 Energy Capacity 910 Matter Stores 300 Matter Capacity 300 Sight Range 18 Terrain Scan Density 10 Jamming Range 12 EM Shielding 2 Armor Coverage 600 Resistance: KI 25 Core Shielding 20 Utility Shielding 33 Point Defense Rating 160 Weapon Cycling 30 Phase Shifting 10 Evasion (%) 62 Targeting Accuracy 10 Melee Accuracy 6 Recoil Reduction 7 Particle Charging 25 Offensive Hacking 10 Defensive Hacking 12 Item Schematics ----------------- Wheel | -9/Materials | Scanalyzed Com. Wheel | -9/Materials | Scanalyzed Microactuators | -7/Factory | Hacked Robot Schematics ------------------ None Fabricated ------------ Wheel | x3 | -6/Factory Centrium Leg | x1 | -5/Factory | Preloaded Adv. Heavy Siege Treads | x1 | -3/Research | Preloaded Quantum Reactor | x2 | -3/Research | Preloaded Repaired ---------- Adv. Beam Rifle | 79% | -7/Factory | Broken Studied --------- Beam Rifle | -9/Materials | Hacked Wheel | -9/Materials | Hacked Imp. Ion Engine | -9/Materials | Hacked Sml. Laser | -9/Materials | Hacked Particle Gun | -8/Materials | Hacked Lgt. Nuclear Core | -8/Materials | Hacked Lgt. Deuterium Engine | -8/Materials | Hacked Alien Tech Used ----------------- None Achievements -------------- 20k Club Below Construction Begets Destruction Hey, That's Mine! I Laugh At Your Crits Immobile And Lovin' It Preemptive Strike Sprinter Challenges ------------ None Game ------ Seed HugeCoolantKinecellerator Manual? 0 Play Time 02:33:15 Cumulative 60.7 hours Start 2026.02.15 @ 20:59:26 End 2026.02.18 @ 15:24:04 Sessions 5 Manual Loads 0 Difficulty Rogue Special Mode None Game No. 75 Rogue 75 Adventurer 0 Explorer 0 Win Type - Total 1 Types 1/0/0/0/0/0/0/0/0/0 Lore% 52 Gallery% 44 Achievement% 38 Wizard Run 0 Options --------- Layout 1 ASCII 0 Keyboard 0 Movement Numpad Keybinds 0 Fullscreen 1 Font 32/SmallcapsGlow Map View 50x35 Zoom Use 0% Tactical HUD 0 Map Filters NONE Filters NONE Steam 1 RUN: f412e7f6-a1d7-4039-8c6b-81c45f1b6f02